Cogmind - Beta 14 X2 @@@ ROGUE MODE // 2024.07.29 @ 12:14:12 Player: Schmee Result: Destroyed by PN-65B(R) with Subdweller Laser Performance ------------- Evolutions (0) 0 Regions Visited (2) 400 Robots Destroyed (22) 110 Value Destroyed (555) 555 Prototype IDs (0) 0 Alien Tech Used (0) 0 Bonus (0) 0 TOTAL SCORE: 1065 Bonus ------- None Cogmind --------- Core Integrity 0/250 Matter 248/300 Energy 250/250 System Corruption 0% Temperature Cool (31) Movement Rolling (110) Location -10/Subcaves Parts ------- > --- POWER (1) -------- Ion Engine > --- PROPULSION (2) --- Spiked Treads Subdweller Monowheel > --- UTILITY (2) ------ Core Shielding Makeshift Light Armor Plating > --- WEAPON (2) ------- Subdweller Beam Cannon Battle Rifle > --- INVENTORY (5) ---- Wheel Medium Storage Unit Subdweller Beam Cannon Subdweller Machine Gun Grenade Launcher Peak State ------------ > --- POWER ------------ Subdweller Power Source > --- PROPULSION ------- Spiked Treads Subdweller Monowheel > --- UTILITY ---------- Core Shielding Makeshift Light Armor Plating > --- WEAPON ----------- Medium Laser Subdweller Beam Cannon > --- INVENTORY -------- Ion Engine Wheel Medium Storage Unit Grenade Launcher Mining Laser [Rating: 14] Favorites ----------- Power Ion Engine Engine Ion Engine Propulsion Aluminum Leg Treads Spiked Treads Leg Aluminum Leg Wheel Subdweller Monowheel Utility Core Shielding Device Terrain Scanner Storage Small Storage Unit Protection Core Shielding Weapon Medium Laser Energy Gun Medium Laser Energy Cannon Subdweller Beam Cannon Ballistic Gun Assault Rifle Launcher Grenade Launcher Special Weapon Mining Laser Build | -11 -10 -10 ------- Run | Yrd Mat Sub Slots Evolved . | . . . Power . | . . . Propulsion . | . . . Utility . | . . . Weapon . | . . . Parts Attached 29 | 1 9 19 Power 5 | . 2 3 Engine 5 | . 2 3 Core . | . . . Reactor . | . . . Propulsion 5 | . 3 2 Treads 1 | . . 1 Leg 3 | . 3 . Wheel 1 | . . 1 Hover . | . . . Flight . | . . . Utility 5 | . 3 2 Device 1 | . 1 . Storage 1 | . 1 . Processor . | . . . Hackware . | . . . Protection 3 | . 1 2 Artifact . | . . . Weapon 14 | 1 1 12 Energy Gun 1 | . . 1 Energy Cannon 3 | . . 3 Ballistic Gun 6 | 1 1 4 Ballistic Cannon . | . . . Launcher 3 | . . 3 Special Weapon 1 | . . 1 Impact Weapon . | . . . Slashing Weapon . | . . . Piercing Weapon . | . . . Special Melee Weapon . | . . . Unidentified Prototypes . | . . . Parts Lost 6 | . 3 3 Power 2 | . 1 1 Propulsion 2 | . 1 1 Utility . | . . . Weapon 2 | . 1 1 Highest Loss Streak 2 | . 2 2 To Critical Strikes . | . . . Average Slot Usage (%) 99 | . 97 99 Engine 13 | . 12 13 Treads 5 | . . 7 Leg 17 | . 27 13 Wheel 4 | . . 6 Device 1 | . 5 . Storage 4 | . 14 . Protection 21 | . 8 27 Energy Gun 10 | . 14 9 Energy Cannon 4 | . . 6 Ballistic Gun 12 | . 14 11 Naked Turns . | . . . Heaviest Build 20 | 12 20 20 Greatest Support 20 | 20 20 20 Greatest Overweight (x) 1 | . . 1 Average Overweight (x) . | . . . Largest Inventory Capacity 10 | 8 10 10 Average Capacity 6 | 8 8 5 Most Carried 9 | 6 9 9 Average Carried 5 | 6 7 4 Final Capacity 10 | 8 10 5 Final Carried 9 | 6 9 5 Class Distribution -------------------- 100% | Mutant Dominant Class ---------------- Mutant | -10/Materials Mutant | -10/Subcaves Resources | -11 -10 -10 ----------- Run | Yrd Mat Sub Matter Collected 666 | 200 222 244 Remotely . | . . . Salvage Created 652 | . 341 311 Parts 38 | . 26 12 Haulers Intercepted 2 | . 2 . Recyclers Shooed . | . . . Parts Field Recycled . | . . . Retrieved Matter . | . . . Parts Self-Destructed 2 | . . 2 Prevented . | . . . Kills | -11 -10 -10 ------- Run | Yrd Mat Sub Combat Hostiles Destroyed 19 | . 9 10 Guns 15 | . 9 6 AOE 4 | . . 4 Classes Destroyed 6 | . 4 2 Worker 1 | . 1 . Hauler 2 | . 2 . Swarmer 7 | . 6 1 Grunt 3 | . 3 . Sentry 1 | . . 1 Subdweller 8 | . . 8 Best Kill Streak 4 | . 4 2 Combat Bots Only 4 | . 4 2 Max Kills in Single Turn 2 | . 2 1 Gunslinging 1 | . 1 . Exploded 1 | . . 1 Melee . | . . . Uniques/NPCs Destroyed . | . . . Combat | -11 -10 -10 -------- Run | Yrd Mat Sub Hostile Shots Fired 101 | . 59 42 Missed 23 | . 11 12 Damage Taken 1374 | . 729 645 Core 251 | . 150 101 Absorbed by Shields . | . . . Redirected to Shielding 35 | . 14 21 Core Remaining (%) 100 | 100 . . Volleys Fired 87 | . 45 42 Largest 2 | . 2 2 Hottest 130 | . 70 130 Shots Fired 151 | . 90 61 Gun 129 | . 90 39 Cannon 15 | . . 15 Launcher 7 | . . 7 Special . | . . . Kinetic 62 | . 45 17 Thermal 82 | . 45 37 Explosive 7 | . . 7 Electromagnetic . | . . . Robot Hit Streak 26 | . 21 26 Robot Miss Streak 4 | . 4 1 Penetration Max . | . . . Secondary Targets 3 | . 3 . Max Gunslinging Chain 1 | . 1 . Shots Hit Robots 109 | . 62 47 Core Hits 39 | . 19 20 Critical Kills 1 | . 1 . Critical Parts Destroyed . | . . . Critical Strikes 5 | . 3 2 Burn 4 | . 2 2 Destroy 1 | . 1 . Melee Attacks . | . . . Impact . | . . . Slashing . | . . . Piercing . | . . . Sneak Attacks . | . . . Combat Hostiles . | . . . Follow-up Attacks . | . . . Damage Inflicted 1768 | . 782 986 Guns 1241 | . 782 459 Cannons 106 | . . 106 Explosions 417 | . . 417 Melee . | . . . Ramming 4 | . . 4 Kinetic 621 | . 414 207 Thermal 726 | . 368 358 Explosive 417 | . . 417 Electromagnetic . | . . . Impact . | . . . Slashing . | . . . Piercing . | . . . Highest Corruption . | . . . Average Corruption . | . . . Corruption Purged . | . . . Corruption Blocked . | . . . Overload Shots . | . . . Overflow Damage . | . . . Projectiles . | . . . Explosions . | . . . Melee . | . . . Knockbacks . | . . . Impact . | . . . Kinetic . | . . . Secondary . | . . . Self-Inflicted Damage 24 | . . 24 Shots 1 | . . 1 Rammed . | . . . Targets Rammed . | . . . Kicked . | . . . Crushed . | . . . Highest Temperature 295 | . 295 96 Average Temperature 68 | . 79 28 Received Heat Transfer 369 | . 228 141 Siege Activations . | . . . Robots Corrupted . | . . . Combat Hostiles . | . . . Parts Fried . | . . . Impact Corruptions . | . . . Robots Melted . | . . . Combat Hostiles . | . . . Parts Melted 4 | . 3 1 Heat Transferred 2257 | . 1221 1036 Parts Sabotaged . | . . . Parts Stolen . | . . . Parts Stripped . | . . . Power Chain Reactions . | . . . Alert | -11 -10 -10 ------- Run | Yrd Mat Sub Peak Influence 251 | . 251 . Initial . | . . . Average 83 | . 83 . Maximum Alert Level 1 | . 1 . Low Security (%) 93 | 100 93 . Level 1 6 | . 6 . Level 2 . | . . . Level 3 . | . . . Level 4 . | . . . Level 5 . | . . . High Security . | . . . Max Security . | . . . Squads Dispatched 2 | . 2 . Investigation 1 | . 1 . Extermination . | . . . Reinforcement 1 | . 1 . Assault . | . . . Garrison . | . . . Intercept . | . . . Searches Triggered . | . . . Construction Impeded . | . . . Haulers Reinforced . | . . . Active Scanning Responses . | . . . Cargo Convoy Interrupts . | . . . Stealth | -11 -10 -10 --------- Run | Yrd Mat Sub Distress Signals 4 | . 4 . Communications Jammed . | . . . Distress Signals . | . . . Times Spotted 37 | . 24 13 Peak Tracking Total 7 | . 7 3 Tactical Retreats . | . . . Traps | -11 -10 -10 ------- Run | Yrd Mat Sub Traps Triggered 1 | . 1 . Indirectly . | . . . Trap Hack Attempts . | . . . Triggered . | . . . Disarmed . | . . . Reprogrammed . | . . . Reused . | . . . Traps Extracted . | . . . Installed . | . . . Triggered . | . . . Machines | -11 -10 -10 ---------- Run | Yrd Mat Sub Machines Disabled . | . . . Max in Single Turn . | . . . Machines Repaired . | . . . Machines Dismantled . | . . . Machines Sabotaged . | . . . Overloaded Fab Kills . | . . . Hacking | -11 -10 -10 --------- Run | Yrd Mat Sub Machines Accessed 5 | . 5 . Terminals 5 | . 5 . Fabricators . | . . . Repair Stations . | . . . Recycling Units . | . . . Scanalyzers . | . . . Garrison Access . | . . . Total Hacks 10 | . 10 . Successful 3 | . 3 . Failed 6 | . 6 . Catastrophic 2 | . 2 . Database Lockouts 1 | . 1 . Manual 10 | . 10 . Terminals 10 | . 10 . Fabricators . | . . . Repair Stations . | . . . Recycling Units . | . . . Scanalyzers . | . . . Garrison Access . | . . . Terminal Hacks 1 | . 1 . Robot Analysis 1 | . 1 . Fabricator Hacks . | . . . Repair Station Hacks . | . . . Recycling Unit Hacks . | . . . Scanalyzer . | . . . Garrison Access Hacks . | . . . Unauthorized Hacks 2 | . 2 . Terminals 2 | . 2 . Botnet 2 | . 2 . Fabricators . | . . . Repair Stations . | . . . Recycling Units . | . . . Scanalyzers . | . . . Garrison Access . | . . . Data Cores Recovered . | . . . Used . | . . . Hacking Detections 5 | . 5 . Full Trace Events 1 | . 1 . Feedback Events . | . . . Feedback Blocked . | . . . Robot Schematics Acquired . | . . . Robots Built . | . . . Authchips . | . . . Time . | . . . Total Robot Build Rating . | . . . Part Schematics Acquired . | . . . Parts Built . | . . . Authchips . | . . . Time . | . . . Total Part Build Rating . | . . . Parts Repaired . | . . . Time . | . . . Parts Recycled . | . . . Recycled Matter . | . . . Retrieved Matter . | . . . Retrieved Components . | . . . Parts Scanalyzed . | . . . Part Schematics Acquired . | . . . Parts Damaged . | . . . Bothacking | -11 -10 -10 ------------ Run | Yrd Mat Sub Used RIF Installer . | . . . Robots Hacked . | . . . Non-combat . | . . . Combat . | . . . Robot Hacks Applied . | . . . Relay Couplers Released . | . . . Fabnet Peak Effective % . | . . . Robots Rewired . | . . . Allies Hacked . | . . . Hacks Repelled . | . . . Allies | -11 -10 -10 -------- Run | Yrd Mat Sub Total Allies . | . . . Largest Group . | . . . Highest-Rated Group . | . . . Highest-Rated Ally . | . . . Total Orders . | . . . Ally Attacks . | . . . Total Damage . | . . . Kills . | . . . Allies Corrupted . | . . . Allies Melted . | . . . Intel | -11 -10 -10 ------- Run | Yrd Mat Sub Robot Analysis Total 1 | . 1 . Derelict Logs Recovered 1 | . . 1 Drone Launches . | . . . Drone Recoveries . | . . . Exploration | -11 -10 -10 ------------- Run | Yrd Mat Sub Turns Passed 2629 | 2 802 1825 Spaces Moved 1651 | 1 523 1127 Core . | . . . Treads 219 | . . 219 Legs 973 | 1 523 449 Wheels 459 | . . 459 Hover . | . . . Flight . | . . . Fastest Speed 110 | 120 120 110 Average Speed 139 | 120 120 148 Slowest Speed 190 | 120 120 190 Overloaded Moves . | . . . Propulsion Burnouts . | . . . Robots Hopped . | . . . Cave-ins Triggered . | . . . Exploration Rate (%) 40 | 2 74 44 Regions Visited 2 Branch Regions 1 Pre-discovered Areas 1 | . . 1 Known Exits Taken . | . . . Unknown Exits Taken 2 | 1 1 . Scrap Searched 3 | . . 3 Spaces Dug . | . . . Terrain Destroyed 37 | . . 37 Melee . | . . . Projectile 3 | . . 3 AOE 34 | . . 34 Terrain Rammed 1 | . . 1 Walls Destroyed . | . . . Machines Disabled . | . . . Actions | -11 -10 -10 --------- Run | Yrd Mat Sub Total 1825 | 1 609 1215 Wait 31 | . 20 11 Move 1649 | . 522 1127 Hop . | . . . Pick Up 9 | . 7 2 Fast Attach 7 | . 2 5 Attach 4 | . 2 2 Detach 3 | . . 3 Swap 18 | 1 5 12 Drop 16 | . 6 10 Fire 87 | . 45 42 Melee . | . . . Ram 1 | . . 1 Kick . | . . . Crush . | . . . Escape Stasis . | . . . Rewire . | . . . Trap . | . . . Miscellaneous . | . . . Route ------- -11/Scrapyard -10/Materials (discovered 3 exits: [*Mat] / [*Min] / [*Sub]) -10/Subcaves (discovered 1 exit: [*Mat]) History --------- Turn | Location | Event 3 | -11/Scrapyard | Discovered new exit (range 0) 3 | -11/Scrapyard | Entered Materials 306 | -10/Materials | Build established: Mutant 360 | -10/Materials | Core integrity fell below 50% 432 | -10/Materials | Discovered new exit (range 15) 506 | -10/Materials | Central database locked down 570 | -10/Materials | Discovered new exit (range 9) 799 | -10/Materials | Discovered new exit (range 5) 805 | -10/Materials | Entered Subcaves 813 | -10/Subcaves | Learned location of Zion (-6) 813 | -10/Subcaves | Met a Zionite searching for "candidates" 1491 | -10/Subcaves | Curiously followed by a Cobbler waking with a query about "LVR3C" 1621 | -10/Subcaves | Shifting Twisted Machinery released Spk. Treads 1625 | -10/Subcaves | Shifting Twisted Machinery released Mak. Light Armor Plating 1748 | -10/Subcaves | Discovered new exit (range 8) 1755 | -10/Subcaves | Disturbed a concealed Subdweller 1769 | -10/Subcaves | Core integrity fell below 20% 2625 | -10/Subcaves | A Subdweller sparked back to life 2625 | -10/Subcaves | A Subdweller sparked back to life 2630 | -10/Subcaves | Destroyed by PN-65B(R) with Subdweller Laser Last Messages --------------- 01907_ Acquired derelict log, extracted data. Data stored: Mines entrances (x2). 01927_ Sub. Power Source shoots sparks and powers down. 01935_ DI-VS4(O) puts together Sub. Machine Gun. 01936_ Dropped Broken Sub. Power Source. 01975_ DI-VS4(O) puts together Battle Rifle. 02002_ Acquired Battle Rifle. 02072_ Dropped Sub. Beam Cannon. 02099_ ZA-E0P(R) destroyed. 02102_ Dropped Med. Laser. 02105_ Acquired Sub. Machine Gun. 02110_ Dropped Mining Laser. 02114_ Acquired Sub. Beam Cannon. 02135_ Subatomizers dissect the Sub. Monowheel. 02261_ W8-GLO(u) builds Twisted Machinery. 02292_ Sub. Beam Cannon shoots sparks and powers down. 02330_ Acquired 13 matter. 02617_ W8-GLO(u) builds Twisted Machinery. 02625_ WC-TL7(R) creaks and sparks as it begins to move. 02625_ PN-65B(R) creaks and sparks as it begins to move. Map ----- +----------------------------------------------------+ | ????????????????????????????????????????### #???? | | ???????????????????????????????????????## #?### | | ??????????????????????????????????????## ### | | ??????????????????????????????????????# ## | | ???????????????????????????????????????# | | ???????????????????????????????????????# | | ???????????????????????????????????????# ## | | ???????????????????????????????????????# ### | | ???????????????????????????????????????# ### | | ??????????????????????????????????????## ## | | ??????????????????????????????????????# | | ???????????????????????????###????????# | | ??????????????????????????< ????????## | | ?????????????????????####? ??????????##### | | ????????????????????? ?< ?#????????????## | | ?????????????????????? ?R &"#?????????????### | | ?????????????????????? " ? #???????????????## | | ?????????????????????? ?????????????????## | | ??????????????????????? # # ???????????????????# | | ??????????????????????? ???????????????????# | | ??????????????????????## ???????????????????## | | ??????????????????????#" ????????????????##### | | ??????????????????????#" #???????????###### | | ??????????????????????#" ##??????????# ### ## | | ??????????????????????#" #####??????# # | | ??????????????????????##"@### #??????# ## & | | ??????????????????????##" #?# ###?????# # | | ??????????????????????# "### #?????# ## # | | ??????????????????????# "## ##???## ### | | ??????????????????????# ##" """ ##??# ## | | ?????????????????????### """" #### ## | | ????????????????????## ""#" # # ### | | ???????????????????##"" " ### | | ???????????????????#"" ## | | ???????????????????#"" #### # | | ???????????????????# """ ##### | | ???????????????????##""""""## | | ????????????????????### ""#### # ## ## | | ????????????????????###"""##?## # # ###### | | ????????????????????# #?##### # ##?# | | ????????????????????## #### ### ## ### | | ????????????????????# ##?# # # | | ????????????????????# ##??# # | | ????????????????????# #???##"" # ## ## | | ????????????????????## ##???##!##### #### | | ????????????????????# #????# #?## ##??# | | ????????????????????## ##???## ### ##??# | | ????????????????????# ###### ## ## #??## | | ???????????????????## """" ## [ #####???## | | ???????????????????# "" #### #???????## | +----------------------------------------------------+ Best States ------------- Heat Dissipation 25 Energy Generation 15 Energy Capacity 250 Matter Stores 300 Matter Capacity 300 Sight Range 16 Terrain Scan Range 14 Terrain Scan Density 10 Armor Coverage 150 Core Shielding 20 Evasion (%) 55 Recoil Reduction 1 Item Schematics ----------------- None Robot Schematics ------------------ None Fabricated ------------ Nothing Alien Tech Used ----------------- None Achievements -------------- None Challenges ------------ None Game ------ Seed LargeUltimateThrower Manual? 0 Play Time 00:18:26 Cumulative 119.1 hours Start 2024.07.29 @ 11:55:59 End 2024.07.29 @ 12:14:12 Sessions 1 Manual Loads 0 Difficulty Rogue Special Mode None Game No. 61 Rogue 59 Adventurer 0 Explorer 2 Win Type - Total 8 Types 8/0/0/0/0/0/0/0/0 Lore% 44 Gallery% 64 Achievement% 57 Wizard Run 0 Options --------- Layout 0 ASCII 0 Keyboard 1 Movement Numpad Keybinds 0 Fullscreen 1 Font 24/Smallcaps Map View 76x50 Zoom Use 0% Tactical HUD 1 Map Filters NONE Filters NONE Steam 1 RUN: 0b58c7ce-02f5-4da8-9287-086e64390cf0